bitfinex/quotes_ETHUSD_20241122
["timestamp","ask_amount","ask_price","bid_price","bid_amount"]
[1732304303510,0.8683,3274.1,3272.8,1.87574521]
[1732304303849,0.8683,3274.1,3272.9,1.87574521]
[1732304304008,0.8683,3274.1,3272.8,3.96320256]
[1732304304209,0.8683,3274.1,3272.7,2.17944521]
[1732304304519,0.8683,3274.0,3272.7,0.3037]
[1732304304707,0.8683,3274.0,3272.5,4.58738761]
[1732304304708,0.87329981,3274.0,3272.5,1.87574521]
[1732304304908,0.121864,3274.8,3272.5,2.08609083]
[1732304304909,0.8683,3273.7,3272.5,2.08609083]
[1732304305152,0.8683,3273.7,3272.6,0.01527888]
[1732304305328,0.8683,3273.1,3272.0,1.87574521]
[1732304305824,0.8683,3273.1,3272.0,3.96017202]
[1732304306158,0.8683,3273.1,3271.9,2.02220661]
[1732304306339,0.8683,3273.1,3271.9,4.10829917]
[1732304306549,0.8683,3273.1,3272.1,1.87574521]
[1732304306848,0.8683,3273.1,3272.1,0.55]
[1732304307515,0.8683,3273.1,3272.0,0.55]
[1732304308062,0.121864,3274.8,3271.9,0.1464614]
[1732304308063,0.8683,3272.9,3271.9,0.1464614]
[1732304308347,0.00499981,3272.5,3271.5,0.31774409]
[1732304308547,0.01,3273.5,3271.0,2.50099361]
[1732304308548,0.8683,3272.2,3271.0,2.50099361]
[1732304308726,0.00499981,3272.3,3271.1,2.0815683]
[1732304308910,0.00499981,3272.3,3270.7,3.1490426]
[1732304308911,0.00499981,3272.3,3271.0,2.0815683]
[1732304309110,0.00499981,3272.3,3270.7,2.50099361]
[1732304309542,0.01,3273.3,3270.7,2.50099361]
[1732304309543,0.00499981,3272.2,3270.7,2.50099361]
[1732304309749,0.00499981,3272.2,3270.9,2.50099361]
[1732304309930,0.00499981,3272.2,3271.0,2.40413887]
[1732304310138,0.00499981,3272.5,3271.1,0.55]
[1732304310326,0.00499981,3272.2,3270.8,0.32207595]
[1732304310512,0.00499981,3272.2,3271.0,1.25636413]
[1732304310712,0.01,3273.3,3271.2,1.25636413]
[1732304311613,0.01,3273.3,3271.2,0.55]
[1732304312252,0.01,3273.3,3271.1,1.25636413]
[1732304312253,0.01,3273.3,3271.1,1.80636413]
[1732304312441,0.01,3273.3,3271.3,0.55]
[1732304312640,0.55,3274.6,3271.3,0.56]
[1732304312853,0.55,3274.4,3271.3,0.56]
[1732304313024,0.55,3274.2,3271.3,0.56]
[1732304313236,0.55300639,3274.6,3271.3,0.01]
[1732304313237,0.55,3274.0,3271.3,0.01]
[1732304313553,0.55,3273.8,3271.3,0.01]
[1732304313714,1.54564193,3273.7,3271.1,0.01]
[1732304313919,1.51528936,3273.6,3270.7,0.01]
[1732304314113,1.50392384,3273.4,3270.7,0.01]
[1732304314354,0.56,3273.2,3270.2,0.01]
[1732304314555,0.25256302,3273.1,3270.2,0.01]
[1732304315344,0.25256302,3273.1,3270.3,1.55101459]
[1732304315663,0.25256302,3273.1,3270.1,1.53757595]
[1732304315664,0.2941,3272.9,3270.1,1.53757595]
[1732304315950,0.2941,3272.7,3270.2,2.10069876]
[1732304316281,0.2941,3272.7,3271.0,0.3037]
[1732304316560,0.2941,3272.7,3271.8,0.3037]
[1732304316716,0.2941,3272.7,3272.1,0.55]
[1732304317068,0.03819276,3274.1,3272.6,0.8537]
[1732304317852,0.01,3274.3,3272.6,0.8537]
[1732304318061,0.0481888,3274.3,3272.6,0.8537]
[1732304319172,0.01,3274.6,3271.6,1.5156]
[1732304319173,0.03818882,3274.6,3272.3,0.3037]
[1732304319315,0.03818882,3274.6,3272.7,0.3037]
[1732304319656,0.01,3274.5,3272.9,0.3037]
[1732304319957,0.01,3274.1,3272.9,0.3037]
[1732304320251,0.01,3273.9,3272.9,0.3037]
[1732304320454,0.01,3273.4,3272.9,0.3037]
[1732304320663,0.01,3273.4,3270.9,0.3037]
[1732304320954,0.01,3273.2,3270.9,0.3037]
[1732304321152,0.03820247,3273.2,3270.9,0.3037]
[1732304321418,0.03820247,3273.2,3270.9,0.62577595]
[1732304321703,0.03819953,3273.5,3271.1,0.3037]
[1732304322061,0.03819953,3273.5,3271.3,0.3037]
[1732304322277,0.03819953,3273.5,3271.7,0.3037]
[1732304322475,0.01,3273.3,3271.9,0.3037]
[1732304322699,0.04820169,3273.3,3271.9,0.3037]
[1732304323199,0.03820169,3273.3,3271.9,0.3037]
[1732304323698,0.03820168,3273.2,3272.0,0.3037]
[1732304324504,0.01,3273.1,3270.5,0.3037]
[1732304324809,0.01,3273.1,3269.5,11.87226867]
[1732304324810,0.01,3272.9,3270.2,0.3037]
[1732304325009,0.01,3272.5,3270.2,0.3037]
[1732304325230,0.01,3272.7,3270.2,0.3037]
[1732304325377,0.03820884,3272.6,3270.4,0.3037]
[1732304325574,0.03820884,3272.6,3270.3,0.32207595]
[1732304325575,0.03820884,3272.6,3270.6,0.3037]
[1732304326208,0.03820884,3272.6,3271.0,0.3037]
[1732304326624,0.03820884,3272.6,3269.6,0.3037]
[1732304326625,0.01,3272.6,3269.6,0.3037]
[1732304326921,0.01,3272.6,3269.4,11.5045]
[1732304326922,0.03820888,3272.5,3269.8,0.3037]
[1732304327078,0.03820888,3272.5,3270.0,0.3037]
[1732304327278,0.03820888,3272.5,3270.2,0.3037]
[1732304327723,0.03820888,3272.5,3270.4,0.3037]
[1732304328091,0.02245704,3272.6,3270.4,0.62577595]
[1732304328428,0.02245704,3272.6,3270.2,1.86634245]
[1732304328429,0.02245704,3272.6,3270.8,0.3037]
[1732304328597,0.02245704,3272.6,3271.2,0.3037]
[1732304329124,0.02245704,3272.6,3271.6,0.3037]
[1732304329332,0.02245704,3272.6,3272.0,0.3037]
[1732304329485,0.03820505,3273.2,3272.0,0.3037]
[1732304329486,0.01,3273.9,3272.0,0.3037]
[1732304329812,0.01,3273.8,3272.0,0.3037]
[1732304330025,0.0381966,3273.7,3272.0,0.3037]
[1732304330190,0.0381966,3273.7,3272.4,0.3037]
[1732304330391,0.05819252,3274.5,3272.4,0.3037]
[1732304330622,0.05819252,3274.5,3272.0,0.3037]
[1732304330623,0.04819252,3274.5,3272.0,0.3037]
[1732304330825,0.03819252,3274.5,3272.0,0.3037]
[1732304331189,0.03819252,3274.5,3271.9,0.3037]
[1732304331428,0.03818596,3274.4,3272.1,0.2982]
[1732304332417,0.03818596,3274.4,3273.4,1.2246]
[1732304332418,0.56,3274.3,3273.4,1.2246]
[1732304332586,0.01,3273.6,3273.4,0.9209]
[1732304332786,0.01,3274.0,3273.4,0.9209]
[1732304332787,0.56,3273.9,3273.4,0.9209]
[1732304333011,0.55,3273.7,3273.4,0.9209]
[1732304333252,0.02,3274.3,3273.4,0.9209]
[1732304333731,0.01,3274.0,3273.4,0.9209]
[1732304333926,0.55,3273.9,3273.4,0.9209]
[1732304334088,0.03819118,3273.8,3273.4,0.9209]
[1732304334483,0.03819019,3273.8,3273.4,0.9209]
[1732304335297,0.03819034,3274.4,3273.4,0.9209]
[1732304336371,0.02,3274.2,3273.4,0.63543857]
[1732304336523,0.03819162,3274.1,3273.4,0.6172]
[1732304336682,0.01,3273.7,3273.4,0.6172]
[1732304336885,0.55,3273.6,3273.4,0.6172]
[1732304337213,0.121864,3274.8,3273.4,0.6172]
[1732304337214,0.60819653,3273.5,3273.4,0.6172]
[1732304337588,0.01,3273.0,3271.2,0.4925]
[1732304337789,0.55,3272.9,3270.7,0.32207595]
[1732304338120,0.55,3272.7,3270.7,0.32207595]
[1732304338322,0.55,3272.5,3270.7,0.62577595]
[1732304338486,0.03821055,3272.4,3270.7,0.62577595]
[1732304338908,0.03821055,3272.4,3270.7,0.8945184]
[1732304339113,0.03821055,3272.4,3270.9,0.3037]
[1732304339288,0.03821055,3272.4,3270.9,0.62577595]
[1732304340143,0.03821055,3272.4,3270.4,0.26874245]
[1732304340144,0.03821055,3272.4,3270.5,0.3037]
[1732304340445,0.03821055,3272.4,3270.7,0.3037]
[1732304340652,0.03821055,3272.4,3270.9,0.3037]
[1732304341332,1.004046,3272.3,3270.9,0.3037]
[1732304341530,1.004046,3272.3,3270.3,0.26874245]
[1732304341531,0.55,3272.1,3270.6,0.3037]
[1732304341736,0.0382157,3272.0,3270.4,0.3037]
[1732304342249,0.01,3271.8,3269.3,1.24787001]
[1732304342410,0.55,3271.7,3269.4,0.26874245]
[1732304342602,0.55,3271.5,3269.5,0.3037]
[1732304342807,0.03822419,3271.4,3269.5,0.3037]
[1732304343145,0.03822419,3271.4,3269.7,0.3037]
[1732304343346,0.55,3271.9,3269.9,0.3037]
[1732304343512,0.03821767,3271.9,3270.3,0.3037]
[1732304343713,0.03821336,3272.2,3270.3,0.3037]
[1732304343934,0.454046,3272.3,3270.5,0.3037]
[1732304344143,0.03821146,3272.2,3270.7,0.3037]
[1732304344450,0.03820894,3272.2,3270.9,0.3037]
[1732304344615,0.03820745,3272.9,3271.1,0.3037]
[1732304345308,1.219608,3272.8,3271.3,0.3037]
[1732304345616,1.219608,3272.8,3271.5,0.3037]
[1732304345617,0.03820267,3272.7,3271.5,0.3037]
[1732304346239,5.52794856,3275.1,3271.5,0.3037]
[1732304346240,1.50744302,3273.7,3271.5,0.3037]
[1732304346548,0.05820082,3274.1,3271.9,0.3037]
[1732304346549,1.53792724,3273.2,3271.9,0.3037]
[1732304346751,1.57462779,3273.0,3271.9,0.3037]
[1732304346916,0.03819915,3272.9,3271.9,0.3037]
[1732304347325,0.03819915,3272.9,3271.6,1.24787001]
[1732304347326,0.19948184,3272.9,3272.1,0.3037]
[1732304348343,0.19948184,3272.9,3272.2,0.3037]
[1732304348552,1.57462779,3273.0,3272.2,0.3037]
[1732304348856,0.03820294,3273.2,3272.4,0.3037]
[1732304348857,1.56552484,3273.1,3272.4,0.3037]
[1732304349057,1.56552484,3273.1,3272.2,1.24787001]
[1732304349058,0.05253743,3272.5,3272.2,1.24787001]
[1732304349213,0.05253743,3272.5,3272.0,1.24787001]
[1732304349758,0.05253743,3272.5,3272.1,2.62014238]
[1732304350046,0.05253743,3272.5,3271.8,1.55157001]
[1732304350247,0.05253743,3272.5,3271.9,2.61981526]
[1732304350410,0.05253743,3272.5,3272.0,2.61981526]
[1732304350610,0.05253743,3272.5,3272.1,2.62040266]
[1732304350938,0.05253743,3272.5,3271.9,1.24787001]
[1732304351246,0.05253743,3272.5,3272.0,1.55157001]
[1732304351552,0.05253743,3272.5,3272.2,0.3037]
[1732304351761,1.59673537,3272.5,3272.4,0.3037]
[1732304352054,1.59673537,3272.5,3272.0,1.87180502]
[1732304352055,0.05253743,3272.5,3272.0,1.9017578]
[1732304352216,0.05253743,3272.5,3272.2,0.3037]
[1732304352414,0.05253743,3272.5,3271.6,3.15538084]
[1732304352415,0.09073609,3272.5,3271.5,2.18674002]
[1732304352658,1.53830316,3272.4,3271.6,1.35446153]
[1732304352866,1.56391331,3272.2,3271.1,0.3037]
[1732304353033,1.51620205,3272.0,3271.1,0.3037]
[1732304353236,0.0382099,3271.9,3270.8,0.3037]
[1732304353434,1.53830316,3272.4,3271.0,0.3037]
[1732304353662,1.53830316,3272.4,3271.2,0.3037]
[1732304353834,1.53830316,3272.4,3271.4,0.3037]
[1732304354145,1.56391331,3272.2,3271.3,1.26840005]
[1732304355154,1.57571481,3272.0,3270.7,3.43785781]
[1732304355343,1.57571481,3272.0,3270.1,4.41753317]
[1732304355344,2.99543221,3271.8,3270.2,0.29676762]
[1732304356255,2.99543221,3271.8,3270.3,0.3037]
[1732304356469,2.99543221,3271.8,3270.4,0.3037]
[1732304356965,2.99543221,3271.8,3270.4,0.60046762]
[1732304357329,2.97907277,3272.2,3270.6,0.3037]
[1732304357758,2.97907277,3272.2,3270.5,0.84676762]
[1732304358081,2.97907277,3272.2,3270.5,0.55]
[1732304358234,2.97907277,3272.2,3270.6,1.5957]
[1732304358833,2.97907277,3272.2,3270.7,0.3037]
[1732304359131,1.57571481,3272.0,3270.7,0.3037]
[1732304359336,1.9632,3271.8,3270.7,0.3037]
[1732304360042,1.4132,3271.8,3270.7,0.3037]
[1732304360454,1.4132,3271.8,3270.9,0.3037]
[1732304360656,0.03820571,3271.7,3270.7,0.3037]
[1732304360853,0.03820571,3271.7,3270.9,0.3037]
[1732304361070,0.03820571,3271.7,3269.5,1.90334317]
[1732304361071,1.5201,3271.6,3269.5,1.90334317]
[1732304361379,1.5201,3271.4,3269.2,1.90334317]
[1732304361573,1.5201,3271.4,3269.3,0.3037]
[1732304361977,1.5201,3271.4,3269.5,0.3037]
[1732304362473,1.5201,3271.4,3269.7,0.3037]
[1732304363254,1.5201,3271.4,3269.9,0.3037]
[1732304363582,1.5201,3271.4,3270.1,1.7986]
[1732304365044,0.03821216,3271.3,3269.9,0.3037]
[1732304365248,0.03821216,3271.3,3269.1,1.90334317]
[1732304365249,1.5385,3271.2,3270.1,0.3037]
[1732304365443,0.03821496,3271.1,3270.3,0.3037]
[1732304365644,1.5385,3271.0,3270.3,0.3037]
[1732304365963,1.6009179,3270.9,3270.3,0.3037]
[1732304366155,1.5627,3270.9,3269.2,1.4949]
[1732304366355,1.5627,3270.9,3269.3,0.3037]
[1732304366561,1.5627,3270.9,3269.5,0.3037]
[1732304367184,1.5627,3270.9,3269.9,0.3037]
[1732304367401,1.5627,3270.9,3270.1,0.3037]
[1732304367613,0.03821496,3270.8,3270.2,0.3037]
[1732304367754,1.5909,3270.7,3269.3,0.3037]
[1732304367947,0.02,3272.1,3269.3,0.3037]
[1732304367948,1.5909,3270.5,3269.3,0.3037]
[1732304368172,0.0382247,3270.4,3269.3,0.3037]
[1732304368699,0.0382247,3270.4,3268.9,3.06265811]
[1732304368700,1.5909,3270.3,3268.9,0.3037]
[1732304368875,1.5909,3270.1,3268.9,0.3037]
[1732304369056,1.62912962,3270.0,3268.9,0.3037]
[1732304369252,1.5909,3269.8,3268.9,0.3037]
[1732304369452,1.5909,3269.8,3268.8,1.56635336]
[1732304369453,1.5909,3269.6,3269.1,0.3037]
[1732304369690,1.5909,3269.6,3268.8,1.56635336]
[1732304370082,1.5909,3269.6,3268.8,1.87005336]
[1732304370958,1.5909,3269.6,3268.8,1.56635336]
[1732304371158,0.05254119,3269.9,3267.5,1.26924768]
[1732304371159,1.5909,3269.4,3267.5,1.5356]
[1732304372181,0.03823681,3269.3,3267.6,0.3037]
[1732304372381,1.62913681,3269.3,3266.9,1.2319]
[1732304373160,1.62913681,3269.3,3267.0,0.3037]
[1732304373361,1.4566,3269.1,3267.2,0.3037]
[1732304373555,0.16291368,3269.2,3267.2,0.3037]
[1732304373556,1.49484998,3269.0,3267.2,0.3037]
[1732304374109,1.49484998,3269.0,3266.9,1.2319]
[1732304374254,1.49484998,3269.0,3267.1,0.3037]
[1732304374754,1.584,3268.4,3265.4,0.1464614]
[1732304374957,3.48322382,3269.9,3265.4,0.1464614]
[1732304374958,1.584,3268.2,3265.4,0.1464614]
[1732304375155,1.62227028,3268.1,3265.5,0.3037]
[1732304375554,1.62227028,3268.1,3265.4,0.1460614]
[1732304375758,1.584,3267.9,3265.4,0.1460614]
[1732304375990,0.16222703,3268.0,3265.4,0.1460614]
[1732304375991,1.5655,3267.7,3265.4,0.1460614]
[1732304376196,0.01,3268.8,3265.4,0.0960614]
[1732304376197,1.5655,3267.5,3265.4,0.0960614]
[1732304376759,1.5655,3267.5,3265.5,0.55]
[1732304377000,0.01,3268.6,3265.5,0.55]
[1732304377001,0.03826412,3267.4,3265.5,0.55]
[1732304377312,0.01,3268.6,3265.5,0.55]
[1732304377313,1.5904,3267.3,3265.5,0.55]
[1732304378301,1.5904,3267.3,3265.4,0.0960614]
[1732304378693,1.62866666,3267.2,3265.4,0.0960614]
[1732304378918,1.62866666,3267.2,3264.4,10.0]
[1732304379603,1.62866666,3267.2,3264.1,1.9033]
[1732304380126,1.62866666,3267.2,3264.3,0.3037]
[1732304380308,1.5904,3267.2,3264.5,0.3037]
[1732304380473,1.5904,3267.2,3264.8,0.55]
[1732304381796,1.5904,3267.2,3264.8,0.8537]
[1732304382023,1.5904,3267.2,3264.8,0.8637]
[1732304382180,1.5904,3267.2,3265.3,0.55]
[1732304382375,1.28882859,3267.2,3265.7,0.8537]
[1732304382620,0.03825673,3268.8,3266.0,0.55]
[1732304382829,0.01,3269.7,3266.3,0.8537]
[1732304382830,0.03825434,3269.7,3266.3,0.8537]
[1732304382982,1.25927434,3269.7,3266.3,0.8537]
[1732304383187,1.26927434,3269.7,3266.3,0.8537]
[1732304384326,0.05254119,3269.6,3266.3,0.8537]
[1732304384494,0.03825308,3269.5,3266.3,0.8537]
[1732304384818,0.01,3268.9,3266.2,0.55]
[1732304385481,0.3031,3268.8,3266.2,0.55]
[1732304385707,0.34135553,3268.7,3265.8,0.3037]
[1732304385907,0.34135553,3268.7,3265.7,1.5115]
[1732304385908,0.34135553,3268.7,3266.0,0.3037]
[1732304386825,0.34135553,3268.7,3265.7,1.5115]
[1732304386826,0.34135553,3268.7,3266.1,0.3037]
[1732304386979,0.34135553,3268.7,3266.5,0.3037]
[1732304387191,0.34135553,3268.7,3266.9,0.3037]
[1732304388383,0.34135553,3268.7,3265.7,0.3037]
[1732304388730,0.34135553,3268.7,3266.1,0.3037]
[1732304388968,0.34135553,3268.7,3265.6,1.5115]
[1732304388969,0.34135553,3268.7,3265.7,0.3037]
[1732304389897,0.34135553,3268.7,3265.8,0.3037]
[1732304390423,0.3031,3268.5,3265.2,0.3037]
[1732304390626,0.3035,3268.2,3265.1,1.1813]
[1732304390791,0.64547042,3268.1,3264.5,1.26924768]
[1732304391116,0.64547042,3268.1,3264.1,10.0]
[1732304391117,0.55,3267.8,3264.1,11.26924768]
[1732304391284,0.64547498,3267.7,3264.1,10.0]
[1732304391484,0.64547498,3267.7,3263.9,1.26924768]
[1732304391485,0.6072,3267.5,3264.0,0.3037]
[1732304391735,0.6072,3267.3,3264.2,0.3037]
[1732304391899,0.6072,3267.1,3264.2,0.3037]
[1732304392224,0.64547733,3267.0,3264.2,0.3037]
[1732304392826,0.64547733,3267.0,3264.3,0.3037]
[1732304392988,0.55,3266.9,3263.3,1.26924768]
[1732304393186,0.6072,3266.6,3263.5,0.3037]
[1732304393489,0.64548867,3266.5,3263.5,0.3037]
[1732304393722,0.64548867,3266.5,3263.4,0.3037]
[1732304393926,0.64548867,3266.5,3263.3,1.5117]
[1732304393927,0.64548867,3266.5,3263.6,0.3037]
[1732304394432,0.64548867,3266.5,3263.4,0.29073976]
[1732304394433,0.01,3268.1,3264.6,0.3037]
[1732304394738,0.03827423,3268.0,3265.4,0.3037]
[1732304394888,0.03827423,3268.0,3265.8,0.3037]
[1732304395731,0.01,3267.9,3265.8,0.3037]
[1732304395931,0.03827209,3267.8,3265.9,0.3037]
[1732304397031,0.03827209,3267.8,3265.0,0.3037]
[1732304397338,0.03827209,3267.8,3265.2,0.3037]
[1732304398005,0.55,3267.7,3264.4,0.3037]
[1732304398189,0.55,3267.5,3264.4,0.3037]
[1732304398393,0.03827841,3267.4,3264.4,0.3037]
[1732304399517,0.05254119,3267.3,3264.8,0.3037]
[1732304399836,0.03827841,3267.2,3264.8,0.3037]
[1732304400356,0.03827841,3267.2,3264.5,0.55]
[1732304400357,0.03827841,3267.2,3265.0,0.3037]
[1732304400794,0.03827431,3267.1,3265.0,0.3037]
[1732304401431,0.03827431,3267.1,3264.8,0.3037]
[1732304401593,0.03827431,3267.1,3265.0,0.3037]
[1732304401794,0.03827432,3267.0,3265.0,0.3037]
[1732304402399,0.03062928,3266.8,3264.0,0.3037]
[1732304402595,0.03828461,3266.7,3263.7,0.3037]
[1732304402797,0.03828461,3266.7,3263.9,0.3037]
[1732304403319,0.03062928,3266.5,3263.9,0.3037]
[1732304403599,0.03828831,3266.4,3263.9,0.3037]
[1732304403832,0.03828831,3266.4,3264.0,0.3037]
[1732304404242,0.03062928,3266.2,3264.0,0.3037]
[1732304404553,0.03829284,3266.1,3263.0,1.26794768]
[1732304404851,0.03829284,3266.1,3262.9,0.27940378]
[1732304405140,0.03062928,3265.9,3262.5,1.90334317]
[1732304405348,0.03829656,3265.8,3262.6,2.60026922]
[1732304405510,0.03062928,3265.6,3262.3,1.87773862]
[1732304405832,0.03829655,3265.5,3262.3,0.3037]
[1732304406137,0.03829655,3265.5,3262.2,1.6208614]
[1732304406138,0.58062928,3265.3,3262.2,0.1451614]
[1732304406441,0.03062928,3265.0,3262.2,0.1451614]
[1732304406734,0.03830521,3264.9,3262.3,0.3037]
[1732304407300,0.55,3264.8,3262.3,0.3037]
[1732304407497,0.55,3264.6,3262.2,0.1451614]
[1732304407816,0.55,3264.4,3262.2,0.1451614]
[1732304408009,0.03831329,3264.3,3262.2,0.1451614]
[1732304408233,0.55,3264.2,3262.2,0.1451614]
[1732304408433,0.03831558,3264.1,3262.2,0.1451614]
[1732304408827,0.01,3265.2,3262.2,0.4488614]
[1732304409067,0.03830655,3265.9,3262.2,0.4488614]
[1732304409230,0.03830655,3265.9,3262.4,0.3037]
[1732304409434,0.03830655,3265.9,3262.6,0.3037]
[1732304409630,0.03829277,3266.8,3263.2,0.3037]
[1732304409956,0.03829277,3266.8,3263.1,2.0584]
[1732304409957,0.03829277,3266.8,3263.8,0.3037]
[1732304410111,0.03829277,3266.8,3264.4,0.3037]
[1732304410322,0.03829277,3266.8,3264.5,0.55]
[1732304410861,0.03828155,3267.2,3264.5,0.8537]
[1732304412933,0.03828155,3267.2,3264.9,0.3037]
[1732304413119,0.03828155,3267.2,3265.1,0.3037]
[1732304413320,0.03828155,3267.2,3265.2,0.8537]
[1732304414050,0.03828155,3267.2,3265.2,0.3037]
[1732304414262,0.03828155,3267.2,3264.7,0.3037]
[1732304414434,0.03828155,3267.2,3264.1,2.08739742]
[1732304414435,0.01,3267.1,3263.9,9.695]
[1732304414634,0.60254119,3267.0,3264.1,0.3037]
[1732304414957,0.03828393,3266.9,3264.1,0.3037]
[1732304415781,0.03828393,3266.9,3264.0,0.3037]
[1732304415960,0.05254119,3267.0,3264.6,0.3037]
[1732304415961,0.03828017,3266.8,3264.6,0.3037]
[1732304416147,0.03828017,3266.8,3264.7,0.55]
[1732304416348,0.03828017,3266.8,3264.5,0.55]
[1732304416792,0.03828017,3266.8,3264.7,0.55]
[1732304416949,0.05254119,3267.0,3264.7,0.55]
[1732304416950,0.03827774,3266.7,3264.7,0.55]
[1732304417293,0.05254119,3267.0,3264.7,0.55]
[1732304417666,0.05254119,3267.0,3264.0,1.89558696]
[1732304417667,0.05254119,3267.0,3264.3,0.55]
[1732304417867,0.03827774,3266.9,3264.0,1.56743026]
[1732304418068,0.03827774,3266.9,3264.1,2.92201997]
[1732304418247,0.55,3266.8,3263.7,1.26373026]
[1732304418462,0.55,3266.8,3263.5,1.89558696]
[1732304418463,0.55,3266.6,3263.5,1.26373026]
[1732304418647,0.55,3266.6,3263.3,1.89558696]
[1732304418648,0.03829031,3266.5,3263.6,1.04812532]
[1732304418849,0.03829031,3266.5,3263.7,1.0481317]
[1732304419111,0.03829031,3266.5,3263.5,1.26373026]
[1732304419278,0.03829031,3266.5,3263.6,0.3037]
[1732304419485,0.03829031,3266.5,3263.7,1.04809117]
[1732304419656,0.03829031,3266.5,3263.9,0.3037]
[1732304419854,0.03828477,3266.4,3264.2,0.3037]
[1732304420055,0.05254119,3267.0,3264.3,0.55]
[1732304420268,0.03828044,3266.9,3264.3,0.8537]
[1732304420467,0.03828044,3266.9,3264.6,0.55]
[1732304420694,0.0382762,3266.8,3264.8,0.3037]
[1732304420850,0.0382762,3266.8,3264.4,0.3037]
[1732304421045,0.0382762,3266.8,3264.3,0.2451]
[1732304421251,0.0382762,3266.8,3263.6,1.26373026]
[1732304421452,0.0382762,3266.8,3263.6,2.6219293]
[1732304421773,0.0382762,3266.8,3263.3,1.89558696]
[1732304421774,0.56,3266.7,3263.3,0.95873026]
[1732304421976,0.55,3266.5,3263.1,0.3037]
[1732304422175,0.55,3266.3,3263.3,0.3037]
[1732304422376,0.0382941,3266.2,3263.3,0.3037]
[1732304422552,0.0382941,3266.2,3263.5,0.3037]
[1732304422755,0.03829106,3266.9,3263.7,0.3037]
[1732304422966,0.03829106,3266.9,3263.9,0.3037]
[1732304423215,0.03829106,3266.9,3264.1,0.3037]
[1732304423503,0.03829106,3266.9,3264.6,0.55]
[1732304423727,0.03829106,3266.9,3264.8,0.3037]
[1732304423999,0.05254119,3267.0,3264.8,0.3037]
[1732304424200,0.05254119,3267.0,3264.9,0.55]
[1732304424601,0.05254119,3267.0,3264.8,0.3037]
[1732304424906,0.05254119,3267.0,3264.9,0.55]
[1732304425114,0.05254119,3267.0,3264.7,0.55]
[1732304425317,0.05254119,3267.0,3264.6,0.3037]
[1732304425906,0.05254119,3267.0,3264.1,0.55]
[1732304426069,0.05254119,3267.0,3264.2,0.3037]
[1732304426585,0.03828206,3266.9,3264.2,0.3037]
[1732304426968,0.05254119,3267.0,3264.2,0.3037]
[1732304426969,0.55,3266.8,3264.2,0.3037]
[1732304427203,0.55,3266.6,3264.3,0.3037]
[1732304427381,0.03828778,3266.5,3264.3,0.3037]
[1732304428183,0.03828778,3266.5,3263.4,0.3037]
[1732304428471,0.03828778,3266.5,3263.8,0.3037]
[1732304428872,0.03828778,3266.5,3264.0,0.3037]
[1732304429181,0.05254119,3267.0,3263.5,0.55]
[1732304429182,0.03827851,3266.9,3264.6,0.3037]
[1732304429382,0.03827851,3266.9,3264.8,0.3037]
[1732304429679,0.05254119,3266.8,3264.8,0.3037]
[1732304429868,0.05254119,3266.8,3265.2,0.3037]
[1732304431087,0.05254119,3266.8,3265.1,0.3037]
[1732304431373,0.05254119,3266.8,3265.3,0.3037]
[1732304432269,0.05254119,3266.8,3265.7,0.3037]
[1732304432592,0.05254119,3266.8,3266.1,0.3037]
[1732304432771,0.05254119,3266.8,3266.0,0.55]
[1732304432772,0.05254119,3266.8,3266.3,0.3037]
[1732304433168,0.05254119,3266.8,3266.5,0.3037]
[1732304434160,0.05254119,3266.8,3265.2,1.4423]
[1732304434161,0.05254119,3266.8,3265.5,0.3037]
[1732304434280,0.05254119,3266.8,3265.7,0.3037]
[1732304434468,0.05254119,3266.8,3265.9,0.3037]
[1732304434667,0.05254119,3266.8,3266.3,0.3037]
[1732304435267,0.05254119,3266.8,3266.0,0.55]
[1732304435268,0.05254119,3266.8,3266.7,0.8537]
[1732304435472,0.05254119,3266.8,3266.7,0.8525]
[1732304436103,0.03824846,3270.7,3266.8,1.4722]
[1732304436324,0.122162,3269.5,3266.8,1.7759]
[1732304436492,0.29158614,3270.6,3266.8,1.7759]
[1732304436493,0.03824178,3270.5,3266.8,1.7759]
[1732304437801,0.03824178,3270.5,3266.9,0.55]
[1732304438013,0.55,3270.4,3266.9,0.55]
[1732304438230,0.55,3270.2,3266.9,0.55]
[1732304438400,0.55,3270.2,3266.9,0.8537]
[1732304438401,0.0382434,3270.1,3266.9,0.8537]
[1732304438802,0.55,3270.2,3266.9,0.8537]
[1732304438803,0.03824339,3270.0,3266.9,0.55]
[1732304439021,0.55,3270.2,3265.9,10.0]
[1732304439022,0.04825045,3269.9,3265.9,10.0]
[1732304439307,0.86984621,3269.8,3265.9,10.0]
[1732304439507,0.55,3269.6,3265.9,10.0]
[1732304439716,0.03825175,3269.5,3266.0,1.77625416]
[1732304439917,0.03824396,3270.5,3266.4,0.3037]
[1732304440104,0.28169719,3270.4,3266.4,0.3037]
[1732304440306,0.0382436,3270.3,3266.4,0.3037]
[1732304440503,0.03824361,3270.2,3266.7,0.55]
[1732304440732,0.03824575,3270.1,3266.3,1.4756]
[1732304441035,0.03825258,3270.0,3266.3,1.7793]
[1732304441219,0.58824942,3269.9,3266.4,0.3037]
[1732304441537,0.55,3269.7,3266.4,0.3037]
[1732304441702,0.55,3269.5,3266.3,1.4756]
[1732304441903,0.03825257,3269.4,3266.3,1.4756]
[1732304442102,0.03825256,3269.3,3266.3,1.4756]
[1732304442418,0.03825256,3269.2,3266.3,1.4756]
[1732304442617,0.03825257,3269.1,3266.3,1.4756]
[1732304442805,0.55,3269.5,3266.3,1.4756]
[1732304442806,0.03825256,3269.0,3266.3,1.4756]
[1732304443006,0.03825259,3268.9,3266.4,0.55]
[1732304443194,0.58825259,3268.8,3265.7,1.8206]
[1732304443425,0.03825699,3268.7,3265.7,1.8206]
[1732304443622,0.03825699,3268.6,3265.7,1.8206]
[1732304443823,0.03825699,3268.5,3265.7,1.8206]
[1732304444292,0.03825699,3268.5,3265.8,0.55]
[1732304444805,0.03825698,3268.4,3265.8,0.55]